bitfinex-derivatives/quotes_BTCF0:USTF0_20250809
["timestamp","ask_amount","ask_price","bid_price","bid_amount"]
[1754736005622,0.78920591,117670.0,117660.0,0.0869808]
[1754736005817,0.4457733,117670.0,117660.0,0.0869808]
[1754736006716,0.4457733,117670.0,117660.0,0.43041341]
[1754736010721,0.4457733,117670.0,117660.0,0.50639669]
[1754736015433,0.4457733,117670.0,117660.0,0.43041341]
[1754736015626,0.4457733,117670.0,117660.0,0.50639669]
[1754736016633,0.4457733,117670.0,117660.0,0.43041341]
[1754736022441,0.4778833,117670.0,117660.0,0.50331341]
[1754736024642,0.4920133,117670.0,117660.0,0.50331341]
[1754736025141,0.4920133,117670.0,117660.0,0.57929669]
[1754736026542,0.4920133,117670.0,117660.0,0.50331341]
[1754736027148,0.4778833,117670.0,117660.0,0.50331341]
[1754736029343,0.4920133,117670.0,117660.0,0.50331341]
[1754736029538,0.5158133,117670.0,117660.0,0.50331341]
[1754736034144,0.5158133,117670.0,117660.0,0.1598808]
[1754736034645,1.22004591,117670.0,117660.0,0.002]
[1754736036248,1.23951929,117670.0,117660.0,0.002]
[1754736037049,1.23951929,117670.0,117660.0,0.0869807]
[1754736037251,1.23951929,117670.0,117660.0,0.002]
[1754736037455,1.22004591,117670.0,117660.0,0.002]
[1754736037944,1.22004591,117670.0,117660.0,0.0869807]
[1754736040750,1.20591591,117670.0,117660.0,0.0869807]
[1754736041051,1.22052591,117670.0,117660.0,0.0869807]
[1754736044449,1.15000591,117670.0,117660.0,0.0869807]
[1754736044654,1.22178591,117670.0,117660.0,0.1571307]
[1754736044956,0.8783533,117670.0,117660.0,0.1571307]
[1754736047054,1.22178591,117670.0,117660.0,0.1571307]
[1754736048854,0.8783533,117670.0,117660.0,0.1571307]
[1754736050154,1.22178591,117670.0,117660.0,0.1571307]
[1754736050460,0.5175533,117670.0,117660.0,0.1571307]
[1754736053055,0.4457733,117670.0,117660.0,0.1571307]
[1754736053256,0.5175533,117670.0,117660.0,0.50056331]
[1754736054858,0.4802733,117670.0,117660.0,0.50056331]
[1754736055355,0.4948833,117670.0,117660.0,0.50056331]
[1754736055854,0.5430933,117670.0,117660.0,0.54902331]
[1754736057051,0.5430933,117670.0,117660.0,0.53501331]
[1754736057356,0.5657633,117670.0,117660.0,0.54902331]
[1754736060356,0.5657633,117670.0,117660.0,0.2055907]
[1754736060558,0.5657633,117670.0,117660.0,0.54902331]
[1754736060753,0.5657633,117670.0,117660.0,0.2055907]
[1754736060953,0.5430933,117670.0,117660.0,0.54902331]
[1754736061852,0.5657633,117670.0,117660.0,0.54902331]
[1754736063156,0.4965233,117670.0,117660.0,0.54902331]
[1754736063357,0.5205033,117670.0,117660.0,0.54902331]
[1754736063553,0.5430933,117670.0,117660.0,0.54902331]
[1754736064260,0.5657633,117670.0,117660.0,0.54902331]
[1754736064960,0.5657633,117670.0,117660.0,0.2055907]
[1754736065261,0.5657633,117670.0,117660.0,0.54902331]
[1754736068558,0.0850241,117600.0,117580.0,0.53829254]
[1754736068857,0.4468452,117570.0,117560.0,0.25990051]
[1754736069157,0.0850613,117550.0,117540.0,0.11199]
[1754736069355,0.0850613,117550.0,117540.0,1.39416931]
[1754736069356,0.8076613,117550.0,117540.0,1.39416931]
[1754736069562,0.8220483,117550.0,117540.0,1.59736086]
[1754736069758,0.7216,117550.0,117540.0,1.80699794]
[1754736069960,0.7216,117550.0,117540.0,1.81017288]
[1754736070162,0.7002103,117550.0,117540.0,1.81017288]
[1754736070766,0.7002103,117550.0,117540.0,1.86982899]
[1754736071362,0.7012103,117550.0,117540.0,1.87782899]
[1754736072256,0.7012103,117550.0,117540.0,1.88682899]
[1754736072854,0.3608,117570.0,117560.0,0.1799729]
[1754736073059,0.3608,117570.0,117560.0,0.77922332]
[1754736074166,0.3618,117570.0,117560.0,0.78322332]
[1754736075463,0.3618,117570.0,117560.0,0.78922332]
[1754736076368,0.3618,117570.0,117560.0,0.90733757]
[1754736076567,0.3618,117570.0,117550.0,0.40308872]
[1754736076769,0.0850667,117540.0,117530.0,0.0001]
[1754736077073,0.0850884,117510.0,117500.0,0.4935027]
[1754736077273,0.8066884,117510.0,117500.0,1.29547872]
[1754736077460,0.8066884,117510.0,117500.0,1.41359297]
[1754736077865,0.8066884,117510.0,117500.0,1.04485425]
[1754736078969,0.8066884,117510.0,117500.0,1.04796431]
[1754736079467,0.8066884,117510.0,117500.0,1.46554303]
[1754736080065,0.8116884,117510.0,117500.0,1.46554303]
[1754736080261,0.1701972,117500.0,117480.0,0.06862092]
[1754736080458,0.8067029,117490.0,117480.0,0.59403297]
[1754736080657,0.8067029,117490.0,117480.0,1.45999297]
[1754736081267,0.8067029,117490.0,117480.0,0.59403297]
[1754736081469,0.8067029,117490.0,117480.0,1.46003297]
[1754736081671,0.8067029,117490.0,117480.0,1.45971297]
[1754736081873,0.8067029,117490.0,117480.0,1.45947297]
[1754736082075,0.8067029,117490.0,117480.0,1.4625211]
[1754736082375,0.8077029,117490.0,117480.0,1.4655211]
[1754736082564,0.8077029,117490.0,117480.0,1.14854218]
[1754736082869,0.83835515,117490.0,117480.0,1.5516309]
[1754736083064,0.83835515,117490.0,117480.0,1.5503509]
[1754736083259,0.75325225,117490.0,117480.0,1.5503509]
[1754736083666,0.75325225,117490.0,117480.0,1.14726218]
[1754736083866,0.83835445,117490.0,117480.0,1.14726218]
[1754736084067,0.83835445,117490.0,117480.0,1.5503509]
[1754736084769,0.83835445,117490.0,117480.0,1.61869949]
[1754736084968,0.75325225,117490.0,117480.0,1.61869949]
[1754736085372,0.83835365,117490.0,117480.0,1.61869949]
[1754736085771,0.75325225,117490.0,117480.0,1.61869949]
[1754736085972,0.83835385,117490.0,117480.0,1.61869949]
[1754736087174,0.75325225,117490.0,117480.0,1.61869949]
[1754736087371,0.83835395,117490.0,117480.0,1.61869949]
[1754736088062,0.83835395,117490.0,117480.0,0.80269949]
[1754736088268,0.83835395,117490.0,117480.0,1.66321949]
[1754736088468,0.83835395,117490.0,117480.0,1.64018949]
[1754736089172,0.75325225,117490.0,117480.0,1.64018949]
[1754736089568,0.75325225,117490.0,117480.0,1.66221889]
[1754736089766,0.75361225,117490.0,117480.0,1.66221889]
[1754736090570,0.75325225,117490.0,117480.0,1.66221889]
[1754736090966,0.39245225,117490.0,117480.0,0.97293089]
[1754736091162,0.03165225,117490.0,117480.0,1.83145089]
[1754736091574,0.001,117490.0,117480.0,1.83145089]
[1754736092574,0.001,117490.0,117480.0,2.19225089]
[1754736093969,0.001,117490.0,117480.0,2.13487089]
[1754736094174,0.001,117490.0,117480.0,2.16922089]
[1754736097072,0.03018896,117490.0,117480.0,2.16922089]
[1754736097672,0.26569362,117510.0,117500.0,0.1729884]
[1754736097878,0.3608,117550.0,117540.0,0.0733]
[1754736098072,0.3608,117550.0,117540.0,1.53424867]
[1754736098271,0.36119,117550.0,117540.0,1.53424867]
[1754736099080,0.36119,117550.0,117540.0,1.60311365]
[1754736099280,0.4462488,117550.0,117540.0,1.60311365]
[1754736099579,0.36119,117550.0,117540.0,1.60311365]
[1754736099776,0.36088,117550.0,117540.0,1.60311365]
[1754736099980,0.42167367,117550.0,117540.0,1.60311365]
[1754736100476,0.42267367,117550.0,117540.0,1.4849994]
[1754736100675,0.3618,117550.0,117540.0,1.60411365]
[1754736101079,0.42167367,117560.0,117540.0,2.13504105]
[1754736101282,0.42167367,117560.0,117550.0,0.33201325]
[1754736101475,0.42167367,117560.0,117550.0,1.58826197]
[1754736101476,0.42175367,117560.0,117550.0,1.58826197]
[1754736101685,0.3608,117560.0,117550.0,1.58826197]
[1754736102473,0.59215707,117570.0,117560.0,0.1139916]
[1754736102677,0.59215707,117570.0,117560.0,0.1583516]
[1754736102879,0.59215707,117570.0,117560.0,0.61698032]
[1754736103079,0.50711007,117570.0,117560.0,0.61698032]
[1754736103279,0.42206367,117570.0,117560.0,0.73509457]
[1754736103483,0.06126367,117570.0,117560.0,0.73509457]
[1754736103783,0.06426367,117570.0,117560.0,0.73509457]
[1754736104279,0.42467367,117570.0,117560.0,0.73509457]
[1754736104585,0.4489245,117570.0,117560.0,0.73509457]
[1754736104785,0.4509245,117570.0,117560.0,0.73509457]
[1754736106083,0.42475367,117570.0,117560.0,0.73509457]
[1754736106278,0.3638,117570.0,117560.0,0.73824575]
[1754736106478,0.3608,117570.0,117560.0,0.17365425]
[1754736106678,0.3608,117570.0,117510.0,0.02504]
[1754736106679,0.0851605,117520.0,117510.0,0.02504]
[1754736106886,0.36088,117520.0,117510.0,1.37401642]
[1754736107072,0.3608,117530.0,117510.0,1.62355492]
[1754736107272,0.3608,117530.0,117520.0,0.65832122]
[1754736107473,0.4458732,117530.0,117520.0,0.65832122]
[1754736107780,0.4458732,117530.0,117520.0,0.57324072]
[1754736107781,0.4459532,117530.0,117520.0,0.57324072]
[1754736108076,0.4803132,117530.0,117520.0,0.1294353]
[1754736108581,0.4803132,117530.0,117520.0,0.04739598]
[1754736108777,0.4803132,117530.0,117520.0,0.97303648]
[1754736108970,0.4803132,117530.0,117520.0,0.00403598]
[1754736109176,0.4803132,117530.0,117520.0,0.88851598]
[1754736109579,0.4802332,117530.0,117520.0,1.4301352]
[1754736109776,0.39516,117530.0,117520.0,1.4301352]
[1754736110086,0.39816,117530.0,117520.0,1.4301352]
[1754736110380,0.3638,117530.0,117520.0,1.4301352]
[1754736110583,0.003,117530.0,117520.0,1.4301352]
[1754736110975,0.001,117530.0,117520.0,1.02604648]
[1754736111280,0.03836,117530.0,117520.0,1.4291352]
[1754736111673,0.03736,117530.0,117520.0,1.4301352]
[1754736111987,0.03736,117530.0,117520.0,1.02704648]
[1754736112177,0.03736,117530.0,117520.0,1.4301352]
[1754736112483,0.03436,117530.0,117520.0,1.4301352]
[1754736112782,0.03536,117530.0,117520.0,1.4301352]
[1754736113175,0.03436,117530.0,117520.0,0.5706952]
[1754736113377,0.03436,117530.0,117520.0,1.4277752]
[1754736113577,0.39524,117540.0,117530.0,0.1385232]
[1754736113786,0.39524,117540.0,117530.0,0.54161192]
[1754736113984,0.39524,117540.0,117530.0,1.39869192]
[1754736114586,0.39524,117540.0,117530.0,0.54161192]
[1754736114787,0.39524,117540.0,117530.0,1.42265192]
[1754736115088,0.480306,117540.0,117530.0,1.42265192]
[1754736115285,0.39516,117540.0,117530.0,1.42265192]
[1754736115887,0.03436,117540.0,117530.0,1.42265192]
[1754736116683,0.5885152,117550.0,117540.0,0.2139058]
[1754736116883,0.5241381,117550.0,117540.0,0.2139058]
[1754736117080,0.41831,117550.0,117540.0,0.61699452]
[1754736117487,0.3608,117550.0,117540.0,0.61699452]
[1754736117681,0.3608,117550.0,117540.0,0.68508366]
[1754736118080,0.3618,117550.0,117540.0,0.68508366]
[1754736119086,0.3618,117550.0,117540.0,0.28199494]
[1754736119289,0.3618,117550.0,117540.0,0.68508366]
[1754736119489,0.3648,117550.0,117540.0,0.68508366]
[1754736119690,0.3648,117550.0,117540.0,0.28199494]
[1754736119987,0.3648,117550.0,117540.0,0.68508366]
[1754736119988,0.004,117550.0,117540.0,0.68508366]
[1754736120991,0.004,117550.0,117540.0,1.04588366]
[1754736121685,0.3608,117560.0,117540.0,1.21601066]
[1754736121891,0.3608,117570.0,117560.0,0.2138915]
[1754736122078,0.38149841,117570.0,117560.0,0.61698022]
[1754736123081,0.38649841,117570.0,117560.0,0.61698022]
[1754736123283,0.40016,117570.0,117560.0,0.61698022]
[1754736123592,0.5084342,117570.0,117560.0,2.64370022]
[1754736123795,0.42339,117570.0,117560.0,2.64370022]
[1754736124092,0.3658,117570.0,117560.0,2.64370022]
[1754736125295,0.007,117570.0,117560.0,2.64370022]
[1754736125990,0.007,117570.0,117560.0,2.98829022]
[1754736126583,0.007,117570.0,117560.0,1.7348815]
[1754736126789,0.3678,117570.0,117560.0,2.62537022]
[1754736127091,0.007,117570.0,117560.0,2.62537022]
[1754736127992,0.007,117570.0,117560.0,2.2222815]
[1754736128189,0.03851,117570.0,117560.0,2.62537022]
[1754736128692,0.007,117570.0,117560.0,2.62537022]
[1754736129287,0.5836582,117590.0,117580.0,0.1373372]
[1754736129492,0.6855927,117590.0,117580.0,1.0630272]
[1754736130793,0.6865927,117590.0,117580.0,1.46611592]
[1754736131192,0.6015582,117590.0,117580.0,1.46611592]
[1754736132593,0.6015582,117590.0,117580.0,1.0630272]
[1754736132899,0.6015582,117590.0,117580.0,1.46611592]
[1754736137400,0.6015582,117590.0,117580.0,1.46107592]
[1754736141295,0.6015582,117590.0,117580.0,1.0579872]
[1754736146810,0.6015582,117590.0,117580.0,1.40184363]
[1754736147303,0.6015582,117590.0,117580.0,0.56044363]
[1754736147505,0.6015582,117590.0,117580.0,1.39684363]
[1754736148800,0.6015582,117590.0,117580.0,1.0529872]
[1754736149202,0.6015582,117590.0,117580.0,1.39684363]
[1754736150709,0.6015582,117590.0,117580.0,1.0529872]
[1754736150903,0.6015582,117590.0,117580.0,1.39684363]
[1754736152918,0.6004782,117590.0,117580.0,1.37940363]
[1754736155225,0.6004782,117590.0,117580.0,1.29436643]
[1754736155416,0.6004782,117590.0,117580.0,1.37940323]
[1754736156421,0.5906682,117590.0,117580.0,1.35467323]
[1754736156620,0.5906682,117590.0,117580.0,1.37905323]
[1754736160313,0.5869582,117590.0,117580.0,1.37905323]
[1754736160719,0.4996198,117590.0,117580.0,1.37905323]
[1754736161823,0.4468298,117590.0,117580.0,0.55931323]
[1754736162127,0.3608,117590.0,117580.0,1.38915323]
[1754736163021,0.4458298,117590.0,117580.0,1.38915323]
[1754736163621,0.4458298,117590.0,117580.0,1.39015323]
[1754736164225,0.3608,117590.0,117580.0,1.39015323]
[1754736164420,0.3608,117590.0,117580.0,1.37349323]
[1754736164823,0.3666,117600.0,117590.0,0.1381498]
[1754736165024,0.4516226,117600.0,117590.0,0.53457623]
[1754736165922,0.3666,117600.0,117590.0,0.53457623]
[1754736166419,0.5211127,117600.0,117590.0,1.36069623]
[1754736166625,0.5201527,117600.0,117590.0,1.36069623]
[1754736167128,0.5185427,117600.0,117590.0,1.36376481]
[1754736167825,0.5090827,117600.0,117590.0,1.34710481]
[1754736168026,0.5090827,117600.0,117590.0,1.37148481]
[1754736168627,0.5090827,117600.0,117590.0,1.02762838]
[1754736168830,0.5090827,117600.0,117590.0,1.37148481]
[1754736170028,0.5090827,117600.0,117590.0,1.37248481]
[1754736170230,0.5090827,117600.0,117590.0,1.37348481]
[1754736170423,0.5090827,117600.0,117590.0,1.37248481]
[1754736170620,0.5090827,117600.0,117590.0,1.37448481]
[1754736172530,0.4742827,117600.0,117590.0,1.37448481]
[1754736172724,0.4516227,117600.0,117590.0,1.37448481]
[1754736173730,0.3666,117600.0,117590.0,1.37448481]
[1754736174127,0.4516226,117600.0,117590.0,1.37448481]
[1754736175627,0.4516226,117600.0,117590.0,1.35010481]
[1754736175831,0.3666,117600.0,117590.0,1.37448481]
[1754736176028,0.4516227,117600.0,117590.0,1.37448481]
[1754736179438,0.4864227,117600.0,117590.0,1.38514481]
[1754736180433,0.4864227,117600.0,117590.0,1.04128838]
[1754736180634,0.4864227,117600.0,117590.0,1.38514481]
[1754736180939,0.4516227,117600.0,117590.0,1.38514481]
[1754736181635,0.3666,117600.0,117590.0,1.38514481]
[1754736182033,0.3666,117600.0,117590.0,1.04128838]
[1754736182233,0.3666,117600.0,117590.0,1.38514481]
[1754736183134,0.4516224,117600.0,117590.0,1.38514481]
[1754736184142,0.4516224,117600.0,117590.0,0.56502481]
[1754736184335,0.4516224,117600.0,117590.0,1.38242481]
[1754736185841,0.4850824,117600.0,117590.0,1.38242481]
[1754736187439,0.1242824,117600.0,117590.0,1.38242481]
[1754736187637,0.4850824,117600.0,117590.0,1.38242481]
[1754736187839,0.4850824,117600.0,117590.0,1.36659481]
[1754736188344,0.4516224,117600.0,117590.0,1.36659481]
[1754736189041,0.0058,117600.0,117590.0,1.71045124]
[1754736189238,0.7715435,117620.0,117610.0,0.0850151]
[1754736189538,0.7674235,117620.0,117610.0,1.35982153]
[1754736189840,0.6721684,117620.0,117610.0,1.35982153]
[1754736190241,0.5871533,117620.0,117610.0,1.35982153]
[1754736190748,0.5871533,117620.0,117610.0,1.08512905]
[1754736191044,0.5871533,117620.0,117610.0,1.42898548]
[1754736191842,0.5881533,117620.0,117610.0,1.42898548]
[1754736192143,0.5890233,117620.0,117610.0,1.42898548]
[1754736192645,0.5880233,117620.0,117610.0,1.42998548]
[1754736192846,0.5880233,117620.0,117610.0,1.43198548]
[1754736194251,0.5030102,117620.0,117610.0,1.43198548]
[1754736194547,0.5030081,117620.0,117610.0,1.43198548]
[1754736195853,0.5021381,117620.0,117610.0,1.43198548]
[1754736199049,0.3608,117620.0,117610.0,1.43198548]
[1754736200651,0.4458079,117620.0,117610.0,1.43198548]
[1754736200853,0.4792679,117620.0,117610.0,1.43198548]
[1754736201252,0.5021379,117620.0,117610.0,1.43198548]
[1754736202858,0.41713,117620.0,117610.0,1.43198548]
[1754736203056,0.3608,117620.0,117610.0,1.43198548]
[1754736203356,0.4458079,117620.0,117610.0,1.43198548]
[1754736205457,0.3608,117620.0,117610.0,1.43198548]
[1754736205860,0.3608,117620.0,117610.0,1.40677548]
[1754736206054,0.3608,117620.0,117610.0,1.43198548]
[1754736206559,0.4458082,117620.0,117610.0,1.43198548]
[1754736207654,0.4792682,117620.0,117610.0,1.43198548]
[1754736209357,0.4792682,117620.0,117610.0,1.40677548]
[1754736209558,0.4792682,117620.0,117610.0,1.43198548]
[1754736211360,0.4792682,117620.0,117610.0,1.08812905]
[1754736212062,0.39426,117620.0,117610.0,1.08812905]
[1754736212556,0.4686781,117620.0,117610.0,0.12763395]
[1754736212752,0.86122453,117620.0,117610.0,0.93727395]
[1754736212950,0.84825453,117620.0,117610.0,0.98073935]
[1754736213150,0.5123781,117620.0,117610.0,1.44252578]
[1754736213460,0.5101181,117620.0,117610.0,1.44252578]
[1754736213860,0.5021381,117620.0,117610.0,1.44252578]
[1754736214664,0.5030081,117620.0,117610.0,1.44152578]
[1754736214863,0.5030081,117620.0,117610.0,1.44052578]
[1754736215262,0.5109881,117620.0,117610.0,1.44052578]
[1754736215456,0.5123781,117620.0,117610.0,1.44252578]
[1754736215656,0.5123781,117620.0,117610.0,0.63288578]
[1754736215857,0.5123781,117620.0,117610.0,1.09862925]
[1754736216052,0.5123781,117620.0,117610.0,0.28902925]
[1754736216257,0.5123781,117620.0,117610.0,1.09862925]
[1754736217062,0.5123781,117620.0,117610.0,1.44248568]
[1754736218064,0.5109281,117620.0,117610.0,1.01268395]
[1754736218264,0.5150081,117620.0,117610.0,1.09569905]
[1754736218560,0.85886453,117620.0,117610.0,0.95654395]
[1754736218963,0.85886453,117620.0,117610.0,0.09433395]
[1754736219168,0.85886453,117620.0,117610.0,0.93293395]
[1754736219369,0.85886453,117620.0,117610.0,0.95252395]
[1754736219557,0.85886453,117620.0,117610.0,0.14292395]
[1754736219763,0.1469524,117600.0,117590.0,0.13401132]
[1754736220060,1.38656083,117600.0,117590.0,0.91940132]
[1754736220368,1.38656083,117600.0,117590.0,0.83679858]
[1754736221568,1.38186083,117600.0,117590.0,0.83679858]
[1754736222070,1.38386083,117600.0,117590.0,0.83679858]
[1754736222666,1.21378883,117600.0,117590.0,0.83679858]
[1754736225774,1.21378883,117600.0,117590.0,0.91990858]
[1754736225978,0.8722724,117600.0,117590.0,1.36838481]
[1754736226179,0.8721324,117600.0,117590.0,1.36838481]
[1754736226374,0.8106226,117600.0,117590.0,1.36838481]
[1754736226577,0.4498226,117600.0,117590.0,1.36838481]
[1754736226774,0.0890226,117600.0,117590.0,1.36838481]
[1754736227170,0.4498226,117600.0,117590.0,1.36838481]
[1754736227779,0.4488226,117600.0,117590.0,1.36838481]
[1754736228186,0.4488226,117600.0,117590.0,1.44470548]
[1754736228383,0.4478226,117600.0,117590.0,1.44470548]
[1754736228583,0.4468226,117600.0,117590.0,1.44570548]
[1754736228880,0.4458226,117600.0,117590.0,1.44770548]
[1754736231981,0.4458226,117600.0,117590.0,1.10376905]
[1754736232187,0.4776126,117600.0,117590.0,1.44762548]
[1754736234283,0.5008526,117600.0,117590.0,1.37130481]
[1754736235886,0.5071026,117600.0,117590.0,1.37130481]
[1754736237188,0.5071026,117600.0,117590.0,0.56182481]
[1754736237384,0.5071026,117600.0,117590.0,1.37118481]
[1754736238690,0.5071026,117600.0,117590.0,1.36918481]
[1754736238988,0.5071026,117600.0,117590.0,1.37018481]
[1754736239689,0.5071026,117600.0,117590.0,1.36918481]
[1754736240088,0.5071026,117600.0,117590.0,1.47595755]
[1754736240290,0.85486903,117600.0,117590.0,0.18605132]
[1754736240483,0.85486903,117600.0,117590.0,0.91383038]
[1754736240683,0.85486903,117600.0,117590.0,0.94283038]
[1754736240879,0.85486903,117600.0,117590.0,0.96242038]
[1754736241083,0.85486903,117600.0,117590.0,0.99449038]
[1754736241485,0.85486903,117600.0,117590.0,1.01653038]
[1754736241686,0.5071026,117600.0,117590.0,1.10155998]
[1754736241993,0.5008526,117600.0,117590.0,1.44541641]
[1754736242590,0.4458226,117600.0,117590.0,1.44541641]
[1754736243091,0.4776126,117600.0,117590.0,1.44541641]
[1754736243392,0.5008526,117600.0,117590.0,1.44541641]
[1754736243591,0.5071026,117600.0,117590.0,1.44541641]
[1754736243792,0.5071026,117600.0,117590.0,1.10155998]
[1754736245497,0.5071026,117600.0,117590.0,1.01653038]
[1754736245689,0.5071026,117600.0,117590.0,1.10156038]
[1754736246792,0.84981903,117600.0,117590.0,0.17568038]
[1754736246984,0.85300903,117600.0,117590.0,0.91398038]
[1754736247190,0.85300903,117600.0,117590.0,0.96157038]
[1754736247390,0.85300903,117600.0,117590.0,0.86667858]
[1754736247589,0.85300903,117600.0,117590.0,0.9399618]
[1754736247797,0.85300903,117600.0,117590.0,0.9913818]
[1754736248390,0.84981903,117600.0,117590.0,0.8863918]
[1754736248697,0.85300903,117600.0,117590.0,0.83456]
[1754736251500,0.85300903,117600.0,117590.0,0.81004]
[1754736251688,0.85300903,117600.0,117590.0,0.83456]
[1754736251891,0.85300903,117600.0,117590.0,0.9054]
[1754736252198,0.85300903,117600.0,117590.0,0.93828]
[1754736252894,0.84981903,117600.0,117590.0,0.91974]
[1754736253101,0.85300903,117600.0,117590.0,0.93828]
[1754736255295,0.84981903,117600.0,117590.0,0.93828]
[1754736255696,0.5059626,117600.0,117590.0,0.93828]
[1754736255893,0.84981903,117600.0,117590.0,0.93828]
[1754736256296,0.5059626,117600.0,117590.0,0.93828]
[1754736256593,0.84981903,117600.0,117590.0,0.93828]
[1754736256799,0.5059626,117600.0,117590.0,0.93828]
[1754736256999,0.84981903,117600.0,117590.0,0.93828]
[1754736259303,1.21061903,117600.0,117590.0,0.93828]
[1754736261398,0.8667626,117600.0,117590.0,0.93828]
[1754736261602,1.21061903,117600.0,117590.0,0.93828]
[1754736262106,0.8667626,117600.0,117590.0,1.0233095]
[1754736262308,1.18438903,117600.0,117590.0,1.0233095]
[1754736262796,0.8618326,117600.0,117590.0,1.0233095]
[1754736262997,0.8066226,117600.0,117590.0,1.0233095]
[1754736263192,0.8066226,117600.0,117590.0,1.36716593]
[1754736263397,0.8405326,117600.0,117590.0,1.36716593]
[1754736263803,0.8405326,117600.0,117590.0,1.0233095]
[1754736264799,0.8066226,117600.0,117590.0,1.0233095]
[1754736265005,0.8618326,117600.0,117590.0,1.0233095]
[1754736268909,0.8066226,117600.0,117590.0,1.0233095]
[1754736269106,0.8618326,117600.0,117590.0,1.0233095]
[1754736273614,0.8066226,117600.0,117590.0,1.0233095]
[1754736276014,0.8066226,117600.0,117590.0,1.36716593]
[1754736276812,0.8395726,117600.0,117590.0,1.36716593]
[1754736277017,0.8066226,117600.0,117590.0,1.36716593]
[1754736277212,0.8330726,117600.0,117590.0,1.36716593]
[1754736277412,0.8660226,117600.0,117590.0,1.36716593]
[1754736277612,1.20987903,117600.0,117590.0,1.0219895]
[1754736279016,0.8660226,117600.0,117590.0,1.0219895]
[1754736281316,1.20987903,117600.0,117590.0,1.0219895]
[1754736282221,0.8660226,117600.0,117590.0,1.0219895]
[1754736283426,0.8660226,117600.0,117590.0,1.0217095]
[1754736284222,0.8660226,117600.0,117590.0,0.001]
[1754736284421,1.21219903,117600.0,117590.0,0.001]
[1754736284718,1.21219903,117600.0,117590.0,0.10728]
[1754736285521,1.21419903,117600.0,117590.0,0.10728]
[1754736286020,1.21619903,117600.0,117590.0,0.10628]
[1754736286223,1.21619903,117600.0,117590.0,0.07209]
[1754736289126,0.8700226,117600.0,117590.0,0.55679603]
[1754736289326,0.8700226,117600.0,117590.0,0.2129396]
[1754736290226,0.8680226,117600.0,117590.0,0.2129396]
[1754736290429,0.8680226,117600.0,117590.0,0.2139396]
[1754736290624,0.8660226,117600.0,117590.0,0.2139396]
[1754736290831,0.8670226,117600.0,117590.0,0.2139396]
[1754736291330,1.21087903,117600.0,117590.0,0.2139396]
[1754736291527,1.21219903,117600.0,117590.0,0.2139396]
[1754736293730,1.21219903,117600.0,117590.0,0.2902914]
[1754736293921,1.21219903,117600.0,117590.0,0.12891]
[1754736294430,0.8683426,117600.0,117590.0,0.93567]
[1754736294631,1.21219903,117600.0,117590.0,0.93567]
[1754736295031,0.8683426,117600.0,117590.0,1.0206996]
[1754736295240,1.21219903,117600.0,117590.0,1.0206996]
[1754736295939,1.21319903,117600.0,117590.0,1.0196996]
[1754736296736,1.21419903,117600.0,117590.0,1.0196996]
[1754736297536,1.21403903,117600.0,117590.0,0.85968]
[1754736297732,1.21403903,117600.0,117590.0,0.83167]
[1754736298242,1.21403903,117600.0,117590.0,0.93467]
[1754736298637,1.21403903,117600.0,117590.0,0.90048]
[1754736299837,1.21403903,117600.0,117590.0,0.93467]
[1754736301948,1.21187903,117600.0,117590.0,0.90048]
[1754736302140,1.21187903,117600.0,117590.0,0.93467]
[1754736302445,1.21403903,117600.0,117590.0,1.0196997]
[1754736302747,0.8313626,117600.0,117590.0,1.36355613]
[1754736302946,0.8086226,117600.0,117590.0,1.36355613]
[1754736304044,0.8086223,117600.0,117590.0,1.36355613]
[1754736304240,0.7226,117600.0,117590.0,1.36355613]
[1754736304440,0.7226,117600.0,117590.0,0.55679613]
[1754736304636,0.7226,117600.0,117590.0,1.36295613]
[1754736304845,0.67775,117600.0,117590.0,1.36295613]
[1754736305341,0.31695,117600.0,117590.0,1.36295613]
[1754736305547,0.31595,117600.0,117590.0,1.36295613]
[1754736305744,0.31595,117600.0,117590.0,1.36395613]
[1754736306242,0.4009723,117600.0,117590.0,1.36595613]
[1754736307843,0.6505568,117610.0,117590.0,1.61336253]
[1754736308146,0.7189868,117610.0,117600.0,0.55648873]
[1754736308543,0.4458151,117610.0,117600.0,0.55648873]
[1754736308944,0.7008493,117620.0,117610.0,0.04227]
[1754736309146,0.5308212,117620.0,117610.0,1.36228163]
[1754736309348,0.5814489,117630.0,117620.0,0.212618]
[1754736309548,0.5309089,117630.0,117620.0,1.36223443]
[1754736309749,0.3609,117630.0,117620.0,1.36223443]
[1754736310549,0.3619,117630.0,117620.0,1.36223443]
[1754736311147,0.3629,117630.0,117620.0,1.36223443]
[1754736312951,0.0021,117630.0,117620.0,1.89306643]
[1754736313344,0.3608,117640.0,117620.0,2.06307753]
[1754736313546,0.3608,117640.0,117630.0,0.55646703]
[1754736315555,0.3618,117640.0,117630.0,0.55646703]
[1754736316357,0.3638,117640.0,117630.0,0.55646703]
[1754736316956,0.3618,117640.0,117630.0,0.55646703]
[1754736317152,0.3628,117640.0,117630.0,0.55646703]
[1754736318947,0.3628,117640.0,117630.0,0.72648303]
[1754736319354,0.002,117640.0,117630.0,1.08728303]
[1754736319855,0.002,117640.0,117630.0,0.91726703]
[1754736320150,0.002,117640.0,117630.0,0.55646703]
[1754736324160,0.002,117640.0,117630.0,0.91726703]
[1754736324559,0.002,117640.0,117630.0,0.55646703]
[1754736329853,0.3608,117650.0,117640.0,0.0849943]
[1754736330052,0.3608,117650.0,117640.0,1.36054073]
[1754736331066,0.3638,117650.0,117640.0,1.42889838]
[1754736331264,0.3985,117650.0,117640.0,1.42889838]
[1754736331466,0.43698,117650.0,117640.0,1.42889838]
[1754736331764,0.575937,117650.0,117640.0,1.08488195]
[1754736331965,0.575937,117650.0,117640.0,1.42873838]
[1754736332264,0.577937,117650.0,117640.0,1.42873838]
[1754736333867,0.577937,117650.0,117640.0,1.08488195]
[1754736334068,0.577937,117650.0,117640.0,1.42873838]
[1754736335466,0.553727,117650.0,117640.0,1.42873838]
[1754736336266,0.553727,117650.0,117640.0,1.08488195]
[1754736336466,0.46874,117650.0,117640.0,1.42873838]
[1754736336666,0.5537271,117650.0,117640.0,1.42873838]
[1754736338761,0.5076971,117650.0,117640.0,1.42873838]
[1754736338965,0.3658,117650.0,117640.0,1.42873838]
[1754736339562,0.3608,117650.0,117640.0,1.42873838]
[1754736339762,0.3608,117650.0,117640.0,1.43173838]
[1754736342274,0.6680246,117660.0,117640.0,1.61022618]
[1754736342470,0.7185646,117660.0,117650.0,0.55647313]
[1754736343077,0.633578,117660.0,117650.0,0.55647313]
[1754736343679,0.633578,117660.0,117650.0,0.56148081]
[1754736344878,0.5485919,117660.0,117650.0,0.56148081]
[1754736345573,0.5311319,117660.0,117650.0,0.56148081]
[1754736345780,0.5485919,117660.0,117650.0,0.56148081]
[1754736346675,0.5717519,117660.0,117650.0,0.56148081]
[1754736347782,0.59178853,117660.0,117650.0,0.56148081]